bitfinex-derivatives/quotes_ETHF0:USTF0_20250902
["timestamp","ask_amount","ask_price","bid_price","bid_amount"]
[1756820096903,0.27,4301.5,4300.3,0.27]
[1756820096904,1.1562,4300.6,4300.3,0.27]
[1756820097106,3.2078,4300.7,4300.3,0.27]
[1756820097301,4.364,4300.7,4300.3,0.27]
[1756820097604,3.2078,4301.2,4300.3,1.3328]
[1756820097803,33.493,4301.9,4300.3,1.3328]
[1756820097804,36.7008,4301.9,4300.3,1.3328]
[1756820098100,3.2078,4301.1,4300.3,1.3328]
[1756820098305,1.1562,4301.7,4300.3,1.3328]
[1756820098306,3.2078,4301.7,4300.4,1.0628]
[1756820098705,3.2078,4302.2,4301.0,1.0628]
[1756820098906,3.2078,4302.2,4301.1,0.27]
[1756820099108,3.2078,4301.7,4301.1,0.27]
[1756820099304,33.493,4303.3,4300.1,1.0628]
[1756820099305,3.2078,4301.2,4300.1,1.0628]
[1756820099501,3.4768,4301.2,4300.1,1.0628]
[1756820099801,3.4768,4301.2,4299.6,0.269]
[1756820099802,3.2078,4300.6,4299.6,0.269]
[1756820099999,4.364,4300.0,4299.6,0.269]
[1756820100498,4.364,4300.0,4298.5,4.2706]
[1756820100707,3.2078,4298.8,4298.2,0.269]
[1756820101100,0.3632,4301.6,4298.3,1.0628]
[1756820101101,3.2078,4299.5,4298.3,1.0628]
[1756820101300,3.2078,4299.5,4298.5,1.0628]
[1756820101508,3.2078,4300.0,4298.9,1.0628]
[1756820101705,3.2078,4300.6,4299.5,1.0628]
[1756820101901,3.2078,4300.6,4299.6,0.269]
[1756820102302,1.1562,4301.4,4300.5,3.2078]
[1756820102507,3.2078,4302.3,4301.3,3.2078]
[1756820102719,3.2078,4303.1,4301.5,1.0628]
[1756820103011,3.2078,4302.3,4301.5,1.0628]
[1756820103204,3.2078,4302.2,4301.6,0.269]
[1756820103404,1.1562,4302.6,4301.5,1.0628]
[1756820103405,3.2078,4301.7,4301.5,1.0628]
[1756820103708,3.2078,4302.9,4301.7,1.0628]
[1756820103911,3.2078,4303.7,4302.6,4.2706]
[1756820104212,3.2078,4303.7,4303.1,4.2706]
[1756820104414,4.364,4303.7,4302.2,4.2706]
[1756820104603,1.1562,4303.7,4302.7,3.2078]
[1756820104803,1.1562,4303.1,4301.4,3.2078]
[1756820105015,3.2078,4302.0,4301.5,1.0628]
[1756820105206,3.2078,4302.0,4301.4,1.0628]
[1756820105512,3.4778,4303.0,4301.9,4.2706]
[1756820105812,3.2078,4302.2,4301.3,1.0628]
[1756820106003,3.2078,4302.2,4301.2,3.2078]
[1756820106204,3.2078,4302.2,4301.3,0.27]
[1756820106511,1.1562,4302.1,4300.6,3.2078]
[1756820106808,0.3733,4304.7,4300.6,3.2078]
[1756820106809,3.2078,4302.3,4300.6,3.2078]
[1756820107007,3.2078,4302.3,4300.7,41.09446627]
[1756820107211,3.2078,4303.0,4301.3,1.0628]
[1756820107411,3.2078,4303.0,4301.9,1.0628]
[1756820107716,3.2078,4303.8,4302.9,4.2706]
[1756820107912,3.2078,4304.7,4303.6,1.0628]
[1756820108116,3.2078,4304.7,4303.7,3.2078]
[1756820108304,1.22249446,4307.0,4303.0,33.489]
[1756820108305,1.1562,4304.1,4303.0,33.489]
[1756820108513,1.1562,4304.1,4303.0,36.9678]
[1756820108717,3.2078,4304.2,4303.1,1.0628]
[1756820109010,3.2078,4303.7,4303.0,33.76]
[1756820109202,3.2078,4303.2,4302.4,1.3679]
[1756820109517,3.2078,4303.2,4302.3,0.271]
[1756820109707,3.2078,4303.2,4302.3,1.3679]
[1756820110012,3.2078,4303.9,4302.4,1.0969]
[1756820110212,3.2078,4303.9,4302.4,3.2078]
[1756820110406,3.2078,4303.9,4302.9,3.2078]
[1756820110605,3.2078,4303.9,4303.1,1.0969]
[1756820110811,3.2078,4303.9,4303.2,0.27]
[1756820111115,1.1543,4303.6,4302.9,3.2078]
[1756820111302,1.1543,4303.6,4303.0,0.27]
[1756820111508,0.00477457,4303.7,4303.1,1.0969]
[1756820112013,0.00477457,4303.7,4303.2,0.27]
[1756820112309,0.00477457,4303.7,4302.6,0.27]
[1756820112514,3.2078,4303.4,4302.4,41.07]
[1756820112809,0.00477457,4303.7,4302.8,1.0969]
[1756820113002,0.00477457,4303.7,4303.0,1.0969]
[1756820113202,0.00477457,4303.7,4303.1,0.27]
[1756820113408,0.00477457,4303.7,4303.0,1.0969]
[1756820113715,1.15907457,4303.7,4303.0,0.27]
[1756820114011,0.00477457,4303.7,4303.0,0.27]
[1756820114207,0.00477457,4303.7,4303.1,8.3047]
[1756820114409,1.22249446,4306.2,4303.7,1.0969]
[1756820114410,1.1543,4305.7,4303.7,1.0969]
[1756820114608,1.1543,4305.7,4303.2,33.9315]
[1756820114609,3.2078,4306.4,4305.4,3.2078]
[1756820114814,3.2078,4306.4,4305.9,3.2078]
[1756820115112,3.2078,4307.0,4306.0,0.271]
[1756820115303,3.2078,4307.6,4306.1,1.0969]
[1756820115503,3.2078,4308.1,4307.1,1.0969]
[1756820115704,3.2078,4308.6,4307.8,3.2078]
[1756820115908,3.2078,4308.6,4307.9,1.3679]
[1756820116109,3.2078,4309.2,4307.9,1.3679]
[1756820116308,4.3621,4309.2,4308.3,3.2078]
[1756820116509,4.3621,4309.2,4307.9,1.0969]
[1756820116709,4.3621,4309.2,4307.2,3.2078]
[1756820116710,3.2078,4308.5,4308.0,0.271]
[1756820116915,3.2078,4308.2,4307.7,3.2078]
[1756820117106,3.2078,4308.2,4308.1,0.271]
[1756820117307,3.2078,4308.2,4307.9,0.271]
[1756820117503,3.2078,4308.7,4307.9,0.271]
[1756820117807,1.1543,4308.6,4307.9,0.271]
[1756820118009,3.2078,4308.1,4307.9,0.271]
[1756820118303,4.3621,4308.6,4307.7,0.271]
[1756820118906,4.3621,4308.6,4307.8,0.27]
[1756820119614,4.3621,4308.6,4307.3,41.07]
[1756820120004,0.27,4308.8,4307.7,3.2078]
[1756820120211,3.2078,4309.2,4308.2,3.2078]
[1756820120411,3.2078,4309.2,4308.4,1.0969]
[1756820120612,3.2078,4310.3,4308.8,1.0969]
[1756820120912,3.2078,4310.3,4309.9,1.0969]
[1756820121108,3.2078,4310.3,4309.8,3.2078]
[1756820121410,3.2078,4311.0,4310.1,0.4515]
[1756820121607,3.2078,4311.0,4310.2,1.0969]
[1756820122006,3.2078,4311.0,4310.3,41.071]
[1756820122209,3.2078,4311.0,4310.4,1.0969]
[1756820122608,3.2078,4311.0,4310.3,40.8]
[1756820122609,1.1543,4310.9,4310.3,40.8]
[1756820122914,3.2078,4310.4,4309.0,4.3047]
[1756820123102,3.2078,4310.4,4309.0,1.0969]
[1756820123301,3.2078,4309.9,4309.1,40.8]
[1756820123505,4.6351,4310.9,4309.3,1.0969]
[1756820123709,3.2078,4310.4,4309.4,0.273]
[1756820123911,3.2078,4311.0,4310.1,1.0969]
[1756820124114,1.7,4311.3,4310.5,3.2078]
[1756820124309,1.7,4311.3,4311.0,3.2078]
[1756820124509,1.7,4311.3,4311.1,1.0969]
[1756820124715,1.7,4311.3,4311.2,0.273]
[1756820124907,1.7,4311.3,4311.2,1.0969]
[1756820125109,1.7,4311.3,4311.1,0.273]
[1756820125409,1.1543,4312.3,4311.2,1.0969]
[1756820125410,3.2078,4312.0,4311.2,1.0969]
[1756820125610,3.2078,4312.5,4311.5,3.2078]
[1756820125814,3.2078,4312.5,4311.6,0.273]
[1756820126204,3.2078,4312.5,4311.7,1.0969]
[1756820127215,3.2078,4312.5,4311.6,0.273]
[1756820127413,1.1543,4312.4,4311.0,1.0969]
[1756820127612,3.2078,4312.1,4311.0,1.0969]
[1756820127821,4.3621,4311.6,4311.1,0.273]
[1756820128020,4.3621,4311.6,4310.7,0.273]
[1756820128021,1.1543,4311.5,4310.7,0.273]
[1756820128321,3.2078,4310.9,4310.1,0.273]
[1756820128517,1.1543,4311.1,4310.1,0.273]
[1756820128719,3.2078,4311.5,4310.2,41.8969]
[1756820128915,4.3621,4312.3,4310.8,1.0969]
[1756820129117,1.1543,4312.3,4311.2,3.2078]
[1756820129319,3.2078,4311.3,4310.9,0.273]
[1756820129620,3.2078,4311.3,4309.5,1.0969]
[1756820129621,0.273,4311.2,4309.5,1.0969]
[1756820129811,4.3621,4310.3,4309.5,0.273]
[1756820130014,3.2078,4309.7,4309.5,0.273]
[1756820130216,4.3621,4309.7,4309.5,41.073]
[1756820130522,1.1543,4310.6,4309.5,41.073]
[1756820130721,1.1543,4310.6,4310.1,3.2078]
[1756820130918,1.1543,4311.3,4310.1,0.272]
[1756820131412,1.1543,4311.3,4310.6,3.2078]
[1756820131719,3.2078,4312.6,4311.2,1.0969]
[1756820131922,3.2078,4312.6,4311.3,0.272]
[1756820131923,1.1543,4312.5,4311.3,0.272]
[1756820132218,1.1543,4312.5,4311.7,3.2078]
[1756820132418,3.2078,4312.6,4311.9,1.0969]
[1756820132618,3.2078,4313.7,4312.3,1.0969]
[1756820132822,3.2078,4313.7,4313.1,3.2078]
[1756820133023,3.2078,4313.7,4313.2,0.272]
[1756820133418,3.2078,4313.7,4313.1,3.2078]
[1756820133619,3.2078,4313.7,4313.2,0.272]
[1756820133813,1.1543,4314.3,4313.2,0.272]
[1756820134017,1.1543,4314.3,4313.6,3.2078]
[1756820134224,1.1543,4315.0,4314.1,3.2078]
[1756820134422,1.1543,4315.0,4314.6,3.2078]
[1756820134640,3.2078,4315.6,4314.7,0.272]
[1756820134930,3.2078,4316.3,4315.1,3.2078]
[1756820135122,4.3621,4316.3,4315.2,0.272]
[1756820135327,4.3621,4316.3,4315.3,0.272]
[1756820135537,1.1543,4316.3,4315.3,0.272]
[1756820135829,0.4348,4316.4,4315.8,3.2078]
[1756820136027,1.1543,4316.3,4315.8,3.2078]
[1756820136228,0.4348,4316.4,4315.8,3.2078]
[1756820136435,1.1543,4316.3,4315.3,3.2078]
[1756820136733,1.1543,4316.3,4315.5,3.2078]
[1756820136928,1.1543,4316.3,4315.5,3.4798]
[1756820137131,1.1543,4316.3,4315.5,3.2078]
[1756820137335,1.1543,4316.3,4315.6,0.272]
[1756820137631,1.1543,4317.7,4316.2,4.3047]
[1756820137835,1.1543,4318.2,4317.5,3.2078]
[1756820138134,1.1543,4318.2,4317.6,0.273]
[1756820138331,3.2078,4318.4,4317.5,3.2078]
[1756820138830,3.2078,4318.4,4317.6,0.273]
[1756820139031,3.2078,4318.4,4317.5,3.2078]
[1756820139232,1.1577,4318.2,4317.5,3.2078]
[1756820139433,1.1577,4318.2,4317.6,0.273]
[1756820139629,3.2078,4318.4,4317.6,0.273]
[1756820139828,1.1577,4319.6,4318.2,4.2662]
[1756820140036,1.1577,4319.6,4318.2,4.5392]
[1756820140239,1.1577,4319.6,4318.2,4.2662]
[1756820140444,1.1577,4319.9,4318.2,44.2808]
[1756820140638,1.1577,4319.9,4318.7,3.2078]
[1756820140834,1.1577,4319.9,4318.8,3.2078]
[1756820141041,1.1577,4319.9,4319.4,3.2078]
[1756820141342,2.01876396,4324.9,4319.4,3.2078]
[1756820141343,1.1577,4321.8,4320.2,1.0584]
[1756820141640,1.1577,4321.8,4321.0,3.2078]
[1756820141844,1.1577,4321.7,4320.3,3.2078]
[1756820142048,1.1577,4321.0,4319.7,0.274]
[1756820142241,1.1577,4320.8,4320.1,3.2078]
[1756820142440,1.1577,4321.7,4320.6,3.2078]
[1756820142745,1.1577,4321.7,4318.4,11.46176]
[1756820142746,1.1577,4321.0,4319.9,3.2078]
[1756820143243,1.1577,4321.0,4319.6,0.274]
[1756820143244,1.1577,4321.7,4320.6,1.0584]
[1756820143448,1.1577,4321.7,4320.6,0.275]
[1756820143639,3.2078,4321.5,4320.0,1.0584]
[1756820143840,4.3655,4322.1,4320.8,3.2078]
[1756820144144,3.2078,4322.7,4321.5,1.0584]
[1756820144349,1.1577,4322.8,4322.7,0.41638]
[1756820144543,1.1577,4322.8,4322.6,3.2078]
[1756820144544,1.1577,4324.4,4322.8,1.0584]
[1756820144741,1.1577,4324.3,4322.9,0.275]
[1756820145044,1.1577,4323.9,4322.8,0.275]
[1756820145246,1.1577,4323.9,4323.4,3.2078]
[1756820145445,3.6353,4324.5,4323.4,3.2078]
[1756820145637,1.1577,4323.8,4320.9,3.2078]
[1756820145944,3.2078,4322.6,4321.8,0.4224]
[1756820146343,33.369,4325.1,4321.9,40.8]
[1756820146344,3.2078,4323.9,4321.9,40.8]
[1756820146543,3.2078,4323.9,4322.9,1.0584]
[1756820147143,3.2078,4324.5,4323.1,3.2078]
[1756820147344,3.2078,4324.5,4322.7,0.83878]
[1756820147345,3.2078,4324.5,4323.7,1.0584]
[1756820147750,3.2078,4325.1,4325.0,0.4224]
[1756820147943,3.2078,4325.6,4325.0,0.4224]
[1756820148142,3.2078,4325.1,4325.0,0.4224]
[1756820148548,7.2078,4325.1,4323.6,0.4224]
[1756820148745,3.2078,4323.7,4322.3,1.0584]
[1756820149051,3.2078,4323.6,4322.7,1.4808]
[1756820149349,1.7994608,4328.8,4322.8,1.0584]
[1756820149350,3.2078,4324.2,4322.8,1.0584]
[1756820149550,3.2078,4323.8,4322.7,0.4224]
[1756820149747,3.2078,4324.5,4323.2,1.0584]
[1756820149947,3.2078,4325.0,4323.5,1.0584]
[1756820150245,3.2078,4324.0,4323.4,3.2078]
[1756820150451,3.2078,4324.7,4323.4,3.2078]
[1756820150651,3.2078,4324.2,4323.4,3.2078]
[1756820150848,0.278,4324.1,4322.7,0.4224]
[1756820151056,33.348,4324.7,4321.9,45.48266]
[1756820151057,3.2078,4323.5,4321.9,45.48266]
[1756820151247,3.2078,4323.5,4322.1,1.0584]
[1756820151552,3.2078,4323.5,4321.9,44.0078]
[1756820151553,3.2078,4322.5,4321.4,1.0584]
[1756820151846,3.2078,4322.0,4320.7,1.0584]
[1756820152051,3.2078,4322.0,4320.2,3.2078]
[1756820152052,3.2078,4321.5,4321.1,1.0584]
[1756820152250,3.2078,4323.3,4321.5,1.0584]
[1756820152452,1.1577,4323.5,4322.0,1.0584]
[1756820152650,1.1577,4323.5,4322.0,1.3374]
[1756820152950,1.1577,4323.5,4322.1,3.2078]
[1756820153152,1.1577,4324.3,4323.2,3.2078]
[1756820153450,3.2078,4323.7,4322.8,3.2078]
[1756820153649,1.1577,4323.8,4322.3,4.5452]
[1756820153951,3.2078,4324.2,4323.0,1.0584]
[1756820154143,3.2078,4324.9,4324.1,4.2662]
[1756820154344,1.1577,4325.4,4324.2,0.69524]
[1756820154651,3.2078,4324.6,4323.4,1.0584]
[1756820154953,4.6445,4324.6,4323.4,1.0584]
[1756820155147,3.2078,4324.9,4323.7,3.2078]
[1756820155347,3.2078,4324.9,4323.4,1.0584]
[1756820155556,3.2078,4324.3,4323.4,1.0584]
[1756820155747,3.2078,4324.0,4323.2,3.2078]
[1756820156054,4.3655,4324.0,4322.5,1.0584]
[1756820156356,0.279,4323.9,4322.5,1.0584]
[1756820156555,3.2078,4323.4,4322.5,1.0584]
[1756820156751,4.3655,4324.0,4322.8,0.41637]
[1756820156955,1.1577,4324.7,4323.6,3.2078]
[1756820157246,3.2078,4324.8,4323.6,3.2078]
[1756820157247,3.2078,4324.8,4323.7,1.0584]
[1756820157750,4.3655,4325.4,4324.2,3.62403]
[1756820158054,3.2078,4325.1,4324.1,3.4868]
[1756820158242,3.2078,4325.6,4324.6,3.2078]
[1756820158446,3.2078,4325.1,4324.4,40.8]
[1756820158650,3.2078,4325.1,4323.8,0.279]
[1756820158848,3.2078,4325.1,4323.9,0.33113455]
[1756820159149,3.2078,4325.1,4323.7,4.2662]
[1756820159150,3.2078,4324.4,4323.7,3.2078]
[1756820159356,3.4868,4325.0,4323.8,0.74790119]
[1756820159544,3.4868,4325.0,4323.9,0.61063119]
[1756820159746,0.8296,4324.3,4322.9,1.0584]
[1756820159953,3.2078,4324.1,4322.9,1.0584]
[1756820160359,3.2078,4324.0,4322.9,1.0584]
[1756820160551,3.2078,4324.0,4323.3,1.0584]
[1756820160947,1.7,4325.3,4324.1,1.0584]
[1756820161152,3.2078,4327.1,4325.2,4.2662]
[1756820161456,0.278,4328.5,4326.4,3.2078]
[1756820161753,1.1577,4328.3,4326.5,0.31952487]
[1756820161949,1.1577,4328.3,4326.6,0.31952487]
[1756820162153,1.1577,4327.7,4326.7,0.31952487]
[1756820162352,3.2078,4328.0,4326.9,1.0584]
[1756820162557,1.1577,4328.5,4327.0,0.31952487]
[1756820162759,3.2078,4329.2,4327.4,0.41592]
[1756820162955,1.1577,4329.5,4328.3,3.2078]
[1756820163154,3.2078,4329.2,4327.8,3.2078]
[1756820163354,0.7055,4330.0,4327.1,1.3364]
[1756820163355,1.1577,4328.4,4327.1,1.3364]
[1756820163652,1.1577,4329.7,4327.3,0.41593]
[1756820163847,1.1577,4329.7,4327.2,1.0584]
[1756820164058,1.1577,4329.7,4326.7,33.322]
[1756820164059,1.1577,4330.5,4327.5,1.0584]
[1756820164354,1.1577,4330.5,4327.7,0.4159]
[1756820164555,1.1577,4330.4,4329.7,3.2078]
[1756820164851,3.2078,4330.9,4327.6,0.23101]
[1756820164852,1.1577,4331.2,4330.1,3.2078]
[1756820165058,3.2078,4330.9,4330.1,3.2078]
[1756820165358,1.1577,4331.2,4330.1,3.2078]
[1756820165651,4.4655,4330.2,4329.0,3.2078]
[1756820165852,3.2078,4330.0,4329.0,3.2078]
[1756820166057,0.1,4330.2,4329.6,1.47412]
[1756820166246,0.1,4330.2,4330.1,4.2662]
[1756820166449,0.1,4330.2,4330.1,45.0662]
[1756820166650,0.1,4330.2,4330.1,3.2078]
[1756820166853,0.1,4330.2,4329.5,3.2078]
[1756820167052,1.1577,4330.1,4329.0,3.2078]
[1756820167255,1.1577,4329.9,4328.4,3.2078]
[1756820167457,1.1577,4329.9,4327.3,3.2078]
[1756820167458,3.2078,4328.8,4327.3,3.2078]
[1756820167757,3.2078,4327.8,4326.1,3.2078]
[1756820167967,3.2078,4327.8,4322.9,1.0409]
[1756820167968,0.80367257,4327.7,4324.0,0.41625]
[1756820168253,33.301,4328.0,4324.3,0.281]
[1756820168254,1.1577,4327.5,4324.3,0.281]
[1756820168457,33.301,4328.0,4324.3,0.281]
[1756820168458,1.1577,4327.3,4324.5,0.41621]
[1756820168762,1.1577,4327.3,4325.4,1.0584]
[1756820168950,1.1577,4327.3,4325.5,0.281]
[1756820169154,1.2891,4328.4,4325.6,1.0882]
[1756820169355,1.1561,4328.4,4325.8,0.41608]
[1756820169557,1.1561,4328.4,4326.0,1.0882]
[1756820169754,1.1561,4328.4,4326.1,0.281]
[1756820170053,1.1561,4328.4,4326.0,1.0882]
[1756820170054,1.1561,4328.2,4326.0,1.0882]
[1756820170258,1.1561,4328.2,4325.5,0.183]
[1756820170259,1.1561,4328.2,4326.6,0.41601]
[1756820170452,1.1561,4329.5,4327.1,0.41596]
[1756820170648,1.1561,4329.5,4327.2,0.055]
[1756820170859,1.1561,4329.5,4325.4,10.40312]
[1756820170860,1.1561,4329.5,4327.7,1.0882]
[1756820171249,0.52548864,4329.4,4327.7,1.0882]
[1756820171454,1.1561,4329.5,4327.8,0.157]
[1756820171658,1.1561,4329.5,4328.2,0.41585]
[1756820171955,0.4358,4332.0,4328.4,1.523]
[1756820171956,1.1561,4331.0,4328.4,1.523]
[1756820172157,33.296,4332.4,4328.4,1.523]
[1756820172158,1.1561,4331.9,4329.3,0.41574]
[1756820172360,1.1561,4331.9,4329.5,1.0882]
[1756820172657,1.1561,4331.7,4329.6,0.29490836]
[1756820172859,1.1561,4331.5,4328.7,1.0882]
[1756820173055,1.1561,4331.3,4326.1,1.0882]
[1756820173357,1.1561,4331.1,4326.8,1.0882]
[1756820173554,0.4358,4330.8,4327.5,0.41592]
[1756820173754,1.72804996,4330.7,4327.7,1.0882]
[1756820174055,1.1561,4330.5,4328.7,1.0882]
[1756820174258,1.1561,4330.3,4327.8,1.42822111]
[1756820174456,0.52542825,4330.2,4327.9,0.29504355]
[1756820174657,1.68152825,4330.1,4326.9,1.50418]
[1756820174853,1.68152825,4330.0,4327.4,1.0882]
[1756820175163,1.1561,4330.9,4329.4,0.41574]
[1756820175358,1.1561,4330.9,4329.5,0.63562316]
[1756820175556,1.1561,4330.9,4329.6,0.34078465]
[1756820175855,0.284,4330.8,4329.7,0.34078465]
[1756820176053,1.1561,4330.7,4329.8,0.34078465]
[1756820176254,0.284,4330.6,4329.9,0.34078465]
[1756820176456,1.1561,4331.7,4330.0,0.34078465]
[1756820176650,1.1561,4331.5,4330.1,0.34078465]
[1756820176856,1.1561,4331.3,4330.2,0.34078465]
[1756820177057,0.52526813,4331.2,4330.3,0.34078465]
[1756820177254,1.1561,4331.0,4327.6,1.0882]
[1756820177454,1.5919,4330.8,4325.9,33.286]
[1756820177758,1.1561,4330.6,4326.0,0.29546556]
[1756820178057,1.1561,4329.9,4325.9,1.0882]
[1756820178262,0.4358,4329.6,4326.3,1.0882]
[1756820178558,0.4358,4329.6,4326.4,1.38400243]
[1756820178559,1.73043179,4329.5,4326.4,1.38400243]
[1756820178857,1.1561,4329.3,4326.5,0.29580243]
[1756820179063,1.1561,4329.1,4326.7,1.0882]
[1756820179255,1.1561,4329.1,4326.9,1.0882]
[1756820179559,1.1561,4329.9,4328.2,1.0882]
[1756820180065,0.81066221,4329.8,4327.3,1.0882]
[1756820180267,1.1561,4329.9,4327.2,0.4348]
[1756820180457,3.2078,4330.1,4328.5,3.2078]
[1756820180762,3.2078,4330.1,4329.2,1.0882]
[1756820180960,1.1561,4330.8,4329.5,3.2078]
[1756820181159,3.2078,4331.5,4330.0,3.2078]
[1756820181160,4.3639,4331.5,4330.0,3.2078]
[1756820181357,4.3639,4331.5,4329.9,1.0882]
[1756820181358,3.2078,4330.8,4329.9,1.0882]
[1756820181555,3.2078,4330.5,4328.9,1.0882]
[1756820181763,1.1561,4330.1,4328.7,3.2078]
[1756820181957,3.2078,4330.5,4329.4,1.0882]
[1756820182160,3.2078,4330.5,4329.3,3.2078]
[1756820182363,3.2078,4329.4,4327.1,4.296]
[1756820182560,1.1561,4328.2,4326.6,3.2078]
[1756820182860,1.1561,4328.2,4324.1,33.38837929]
[1756820182861,3.2078,4327.1,4326.0,1.0882]
[1756820183060,3.2078,4327.7,4326.7,3.2078]
[1756820183253,3.2078,4328.2,4327.3,3.2078]
[1756820183458,3.2078,4329.4,4327.7,1.0882]
[1756820183657,0.52729563,4329.3,4327.9,3.2078]
[1756820183858,0.52729563,4329.3,4327.7,1.3752]
[1756820183859,1.1561,4330.5,4329.1,3.2078]
[1756820184063,0.527228,4330.4,4328.7,1.0882]
[1756820184267,1.1561,4330.5,4328.8,0.287]
[1756820184460,3.2078,4330.6,4328.9,1.0882]
[1756820184660,3.2078,4330.1,4328.9,1.0882]
[1756820184864,3.2078,4330.1,4329.0,3.2078]
[1756820185169,3.2078,4330.1,4328.6,3.2078]
[1756820185466,3.2078,4330.6,4329.2,1.0882]
[1756820185666,0.52789226,4330.5,4329.2,4.296]
[1756820185863,0.52789226,4330.4,4329.2,4.296]
[1756820186065,3.2078,4330.6,4329.2,4.296]
[1756820186369,0.52787926,4330.5,4329.2,4.296]
[1756820186667,4.3639,4332.6,4330.5,1.0882]
[1756820186867,4.3639,4332.6,4330.5,4.296]
[1756820187067,4.3639,4332.1,4330.2,3.2078]
[1756820187458,3.2078,4331.3,4330.3,1.0882]
[1756820187660,3.2078,4332.5,4331.3,1.0882]
[1756820187870,1.1561,4333.9,4331.8,3.2078]
[1756820187871,3.2078,4333.6,4331.8,3.2078]
[1756820188074,1.1561,4332.2,4331.8,3.2078]
[1756820188369,3.2078,4331.9,4330.9,44.0078]
[1756820188567,2.8561,4332.3,4330.9,44.0078]
[1756820188965,2.8561,4332.3,4331.9,3.2078]
[1756820189166,1.7,4332.3,4332.0,0.32450588]
[1756820189364,1.1561,4332.2,4332.1,0.32450588]
[1756820189570,4.3639,4332.2,4332.1,0.32450588]
[1756820190068,8.3639,4332.2,4332.1,0.32450588]
[1756820190467,8.6519,4332.2,4330.6,3.2078]
[1756820190665,3.2078,4331.5,4329.9,3.2078]
[1756820190865,3.2078,4331.5,4327.9,33.271]
[1756820190866,1.1561,4330.9,4329.4,3.2078]
[1756820191068,3.2078,4330.3,4329.4,3.2078]
[1756820191267,1.1561,4330.2,4329.0,1.0882]
[1756820191470,3.2078,4329.6,4329.0,1.0882]
[1756820191777,3.2078,4329.1,4327.9,37.567]
[1756820191973,3.2078,4328.6,4327.4,3.2078]
[1756820192272,1.1561,4327.8,4326.9,3.2078]
[1756820192468,3.2078,4327.2,4325.6,3.2078]
[1756820192663,3.2078,4327.2,4325.7,1.0882]
[1756820192869,0.288,4328.5,4326.8,1.0882]
[1756820193172,3.2078,4327.5,4326.7,3.2078]
[1756820193379,1.1561,4327.4,4326.2,3.2078]
[1756820193674,3.2078,4327.7,4326.7,3.2078]
[1756820193866,4.3639,4327.0,4326.0,3.2078]
[1756820194065,3.2078,4326.5,4325.3,3.2078]
[1756820194575,3.2078,4326.5,4325.2,1.50434]
[1756820194576,3.2078,4326.9,4325.6,3.2078]
[1756820194772,3.2078,4326.4,4325.6,3.2078]
[1756820195471,3.2078,4326.4,4325.7,1.0882]
[1756820195670,3.2078,4326.4,4325.7,1.3752]
[1756820195871,1.1561,4328.6,4326.4,1.0882]
[1756820196073,0.18667812,4328.5,4328.2,1.0882]
[1756820196376,3.4948,4330.1,4328.1,3.4948]
[1756820196575,1.1561,4329.8,4328.2,1.0882]
[1756820196775,0.18660648,4329.7,4328.2,1.0882]
[1756820196978,3.2078,4329.4,4328.2,41.8882]
[1756820197279,3.2078,4328.8,4327.5,1.3762]
[1756820197481,3.2078,4328.5,4327.5,1.3762]
[1756820197673,0.18660648,4328.4,4327.5,0.288]
[1756820197984,0.18660648,4328.4,4327.1,3.2078]
[1756820197985,3.2078,4328.0,4327.1,3.2078]
[1756820198176,3.2078,4327.4,4326.3,3.2078]
[1756820198379,3.2078,4326.7,4326.0,1.0882]
[1756820198585,0.18660648,4326.6,4325.8,3.2078]
[1756820198783,0.18660648,4326.6,4325.9,1.0882]
[1756820199079,0.18688302,4326.5,4326.0,3.2078]
[1756820199382,1.1566,4327.1,4326.0,3.2078]
[1756820199383,1.4446,4327.1,4326.0,3.2078]
[1756820199676,0.71459463,4327.0,4326.5,3.2078]
[1756820199882,0.18684115,4326.9,4326.7,1.0724]
[1756820200074,3.2078,4327.4,4326.7,1.0724]
[1756820200275,0.18683852,4327.3,4325.9,4.5672]
[1756820200476,0.18683852,4327.2,4326.6,1.0724]
[1756820200681,0.18683852,4327.2,4326.5,3.2078]
[1756820200682,4.3644,4328.7,4326.8,1.0724]
[1756820200873,0.52755116,4328.6,4327.5,3.2078]
[1756820201075,1.1566,4329.5,4328.2,3.2078]
[1756820201281,0.52739836,4329.4,4328.7,3.2078]
[1756820201478,3.2078,4329.6,4328.7,3.2078]
[1756820201682,3.2078,4328.9,4328.1,40.8]
[1756820201876,3.2078,4328.8,4328.0,1.0724]
[1756820202077,0.287,4329.3,4328.5,3.2078]
[1756820202276,1.1566,4329.2,4328.5,3.2078]
[1756820202479,3.2078,4329.5,4328.5,3.2078]
[1756820202674,0.81462529,4329.4,4328.5,3.2078]
[1756820202879,1.1566,4329.0,4328.2,3.2078]
[1756820203081,3.2078,4329.6,4328.8,3.2078]
[1756820203285,0.287,4329.7,4329.4,3.2078]
[1756820203483,1.1566,4329.8,4329.4,3.2078]
[1756820203674,0.287,4329.9,4329.4,3.2078]
[1756820203994,1.97119231,4329.8,4328.3,3.4948]
[1756820204185,0.286,4329.7,4328.4,4.2802]
[1756820204382,4.3644,4330.9,4329.6,3.2078]
[1756820204586,0.81350163,4330.8,4329.6,3.2078]
[1756820204880,0.81350163,4330.8,4329.7,1.0724]